bitfinex/quotes_SOLUSD_20260109
["timestamp","ask_amount","ask_price","bid_price","bid_amount"]
[1767957024600,68.29714608,138.4,138.37,3.51200049]
[1767957025516,0.56004102,138.4,138.37,3.51200049]
[1767957025911,0.56004102,138.41,138.37,11.44770861]
[1767957026098,0.56004102,138.41,138.37,3.51200049]
[1767957027519,0.099,138.4,138.37,3.51200049]
[1767957027818,0.099,138.4,138.36,7.93618493]
[1767957027819,0.099,138.4,138.36,11.44818542]
[1767957029908,0.5554306,138.39,138.35,7.93671721]
[1767957030115,0.55091194,138.37,138.33,4.22087956]
[1767957030310,0.55091194,138.37,138.34,0.70887907]
[1767957030618,0.56004102,138.38,138.35,4.22087956]
[1767957033016,0.56004102,138.38,138.35,0.70887907]
[1767957033221,0.53004102,138.38,138.35,4.22087956]
[1767957034919,0.53004102,138.38,138.34,7.90545459]
[1767957035104,0.53004102,138.38,138.34,11.41745508]
[1767957035304,0.53004102,138.38,138.35,3.51200049]
[1767957039423,0.53004102,138.38,138.34,11.41745508]
[1767957041723,0.53004102,138.38,138.35,4.18920563]
[1767957044503,0.53004102,138.38,138.34,11.41745508]
[1767957045529,0.53004102,138.38,138.35,3.51200049]
[1767957046408,0.53004102,138.38,138.35,4.18920563]
[1767957046708,0.53004102,138.38,138.35,2.92571554]
[1767957046915,0.53004102,138.38,138.35,0.67720514]
[1767957047121,0.53004102,138.38,138.35,2.92571554]
[1767957049428,0.53004102,138.38,138.35,0.67720514]
[1767957049629,0.53004102,138.38,138.35,2.92571554]
[1767957052429,0.53004102,138.38,138.35,0.67720514]
[1767957052629,0.53004102,138.38,138.35,2.92571554]
[1767957055830,0.5257306,138.36,138.31,0.78031615]
[1767957056032,0.10326731,138.35,138.31,10.2587868]
[1767957057134,0.10326731,138.35,138.32,10.1384932]
[1767957057830,0.53004102,138.36,138.33,2.2485104]
[1767957058218,9.75953697,138.38,138.34,2.2485104]
[1767957058419,4.93617773,138.37,138.34,2.2485104]
[1767957058619,0.53004102,138.36,138.33,2.90893065]
[1767957064048,0.53004102,138.36,138.33,10.13800078]
[1767957064345,7.75657389,138.38,138.35,2.91203268]
[1767957064518,0.53004102,138.38,138.35,2.91203268]
[1767957067353,0.53004102,138.38,138.35,0.66352228]
[1767957067640,0.53004102,138.38,138.35,2.91203268]
[1767957069849,0.53004102,138.38,138.35,0.66352228]
[1767957070334,4.93597845,138.37,138.35,0.66352228]
[1767957070534,0.53004102,138.38,138.35,0.66352228]
[1767957070838,4.93597845,138.37,138.35,0.66352228]
[1767957071023,0.53004102,138.38,138.35,0.66352228]
[1767957071223,4.93603614,138.37,138.35,0.66352228]
[1767957071423,10.00459873,138.39,138.35,7.89155103]
[1767957071726,4.93649135,138.38,138.35,7.89155103]
[1767957071925,4.93649135,138.37,138.35,7.89155103]
[1767957072247,10.00459873,138.39,138.35,7.89155103]
[1767957072551,4.93707203,138.38,138.35,7.89155103]
[1767957072850,4.93707203,138.37,138.35,7.89155103]
[1767957073056,7.75608833,138.39,138.35,10.14006143]
[1767957073229,4.93711979,138.38,138.35,10.14006143]
[1767957073428,4.93711979,138.37,138.35,10.14006143]
[1767957073629,7.75608833,138.39,138.36,0.66352228]
[1767957073857,4.93776074,138.38,138.36,0.66352228]
[1767957074150,4.93776074,138.37,138.36,0.66352228]
[1767957074649,0.67356625,138.42,138.37,0.66352228]
[1767957074851,0.67356625,138.42,138.4,2.2485104]
[1767957075227,0.67356625,138.43,138.4,2.91203268]
[1767957075827,7.22350997,138.44,138.41,2.2485104]
[1767957075828,0.67356625,138.44,138.41,2.2485104]
[1767957077234,0.67356625,138.44,138.41,2.91203268]
[1767957078548,0.67356625,138.45,138.43,2.2485104]
[1767957078771,0.67356625,138.46,138.43,2.91203268]
[1767957078927,0.67356625,138.46,138.43,2.2485104]
[1767957079826,0.67356625,138.46,138.42,2.91203268]
[1767957080738,7.89593864,138.46,138.43,0.66352228]
[1767957081339,7.89593864,138.46,138.43,2.91203268]
[1767957081932,0.67356625,138.45,138.43,2.2485104]
[1767957082137,0.67356625,138.44,138.41,2.2485104]
[1767957082334,0.67356625,138.44,138.4,10.13739199]
[1767957082525,0.67356625,138.44,138.4,2.91203268]
[1767957082723,0.67356625,138.41,138.37,0.66352228]
[1767957082953,0.67356625,138.4,138.36,0.66352228]
[1767957083130,0.67356625,138.4,138.36,2.91203268]
[1767957084040,0.67356625,138.4,138.36,0.66352228]
[1767957084355,0.67356625,138.4,138.36,2.91203268]
[1767957084557,0.67356625,138.4,138.37,2.2485104]
[1767957085136,0.67356625,138.4,138.36,10.13944139]
[1767957085334,7.8990194,138.4,138.36,10.13944139]
[1767957085546,7.8990194,138.4,138.36,2.91203268]
[1767957086336,0.67356625,138.39,138.36,0.66352228]
[1767957090161,0.67356625,138.38,138.35,7.8913363]
[1767957090360,0.67356625,138.38,138.35,10.1398467]
[1767957090543,0.64356626,138.38,138.35,10.1398467]
[1767957092468,2.2485104,138.4,138.36,7.8910242]
[1767957092635,7.22504233,138.41,138.37,0.66352228]
[1767957092636,10.14711898,138.41,138.37,0.66352228]
[1767957094537,0.67356625,138.41,138.37,7.89048905]
[1767957094738,10.14702645,138.41,138.37,0.66352228]
[1767957096273,2.2485104,138.4,138.37,7.89050269]
[1767957096645,10.14702645,138.41,138.37,7.89050269]
[1767957097451,10.14702645,138.41,138.37,10.13901309]
[1767957100077,7.89851605,138.41,138.37,10.13901309]
[1767957100276,10.14702645,138.41,138.37,10.13901309]
[1767957100483,2.92207665,138.41,138.37,10.13901309]
[1767957101581,2.92207665,138.41,138.37,7.89050269]
[1767957101881,2.92207665,138.41,138.37,10.13901309]
[1767957103083,0.64496003,138.4,138.37,7.89050269]
[1767957103793,0.64496003,138.4,138.37,10.13901309]
[1767957105894,0.64496003,138.4,138.38,0.66763469]
[1767957106592,0.67635181,138.41,138.38,2.91614509]
[1767957106956,67.73710506,138.42,138.4,0.66763469]
[1767957107189,0.67635181,138.45,138.42,0.66763469]
[1767957107378,0.67635181,138.45,138.42,2.91614509]
[1767957108688,0.67635181,138.45,138.42,4.17732239]
[1767957109581,0.67635181,138.45,138.43,3.5096877]
[1767957109883,0.67092045,138.46,138.43,4.22417828]
[1767957110061,0.67092045,138.46,138.44,3.5096877]
[1767957111291,0.67092045,138.46,138.43,4.22417828]
[1767957115792,0.67092045,138.46,138.37,1.00702314]
[1767957115793,0.64781045,138.42,138.37,4.22417828]
[1767957115999,4.18014597,138.41,138.37,4.22417828]
[1767957116886,11.40540527,138.41,138.37,4.22417828]
[1767957117686,11.40540527,138.41,138.38,0.71449058]
[1767957117890,0.64803693,138.4,138.37,3.5096877]
[1767957118096,0.64803693,138.4,138.23,0.81449058]
[1767957118097,6.6801107,138.34,138.23,0.81449058]
[1767957118277,6.6801107,138.34,138.27,0.71449058]
[1767957118469,6.6801107,138.34,138.23,0.1]
[1767957118470,6.6801107,138.32,138.29,0.71449058]
[1767957119170,4.11803693,138.3,138.29,0.71449058]
[1767957119370,0.28432314,138.37,138.29,3.5096877]
[1767957119592,3.79401084,138.37,138.31,3.5096877]
[1767957119794,10.73752815,138.36,138.31,0.71449058]
[1767957120501,3.5096877,138.35,138.31,0.71449058]
[1767957120969,7.8987609,138.36,138.31,0.71449058]
[1767957121172,11.4084486,138.36,138.31,0.71449058]
[1767957121984,4.18060815,138.33,138.29,0.71449058]
[1767957122188,25.29664646,138.36,138.27,3.5096877]
[1767957122189,3.5096877,138.31,138.27,0.71449058]
[1767957122792,3.5096877,138.31,138.28,0.72214399]
[1767957123495,3.5096877,138.31,138.25,13.2]
[1767957125299,3.5096877,138.31,138.26,7.23274989]
[1767957125480,3.5096877,138.31,138.27,0.10285601]
[1767957126477,3.5096877,138.31,138.27,7.3347647]
[1767957128200,3.5096877,138.3,138.27,7.3347647]
[1767957128692,3.5096877,138.3,138.15,3.77277558]
[1767957128693,6.6801107,138.26,138.15,3.77277558]
[1767957128994,61.46503722,138.29,138.1,0.72214399]
[1767957128995,6.6801107,138.22,138.1,16.7096877]
[1767957129294,3.5096877,138.23,138.17,3.5096877]
[1767957129479,3.5096877,138.25,138.19,3.5096877]
[1767957129673,4.20125779,138.27,138.21,3.5096877]
[1767957129899,3.5096877,138.25,138.19,3.5096877]
[1767957130191,3.5096877,138.25,138.18,13.2]
[1767957130378,3.5096877,138.25,138.18,16.7096877]
[1767957130697,3.5096877,138.24,138.19,25.32744771]
[1767957131481,3.5096877,138.26,138.2,3.5096877]
[1767957131799,3.5096877,138.26,138.21,7.23536647]
[1767957132584,3.5096877,138.26,138.21,10.74505417]
[1767957133976,4.20125779,138.27,138.22,3.5096877]
[1767957134476,4.20125779,138.27,138.22,13.2]
[1767957135906,3.5096877,138.26,138.22,20.43447798]
[1767957136397,3.5096877,138.25,138.22,20.43447798]
[1767957136979,3.5096877,138.26,138.22,20.43447798]
[1767957137183,3.5096877,138.27,138.22,38.52158548]
[1767957138095,3.5096877,138.25,138.22,38.52158548]
[1767957138404,3.5096877,138.25,138.22,20.43447798]
[1767957138826,3.5096877,138.23,138.19,7.23609897]
[1767957139104,3.5096877,138.22,138.2,7.23582182]
[1767957139494,3.5096877,138.24,138.2,7.23582182]
[1767957140099,3.5096877,138.24,138.2,25.32554685]
[1767957140305,3.5096877,138.23,138.2,25.32554685]
[1767957140609,3.5096877,138.24,138.2,25.32554685]
[1767957140902,3.5096877,138.23,138.2,7.23582182]
[1767957141092,3.5096877,138.24,138.2,7.23582182]
[1767957141487,3.5096877,138.23,138.2,7.23582182]
[1767957141890,0.69157009,138.25,138.2,25.32554685]
[1767957142200,3.5096877,138.23,138.2,25.32554685]
[1767957142400,3.5096877,138.24,138.2,25.32554685]
[1767957142708,0.69157009,138.23,138.2,7.23582182]
[1767957143014,0.69157009,138.23,138.21,13.2]
[1767957143178,0.69157009,138.23,138.19,20.43624687]
[1767957143985,0.7234843,138.24,138.19,31.29027597]
[1767957144193,67.73710506,138.27,138.21,7.23536647]
[1767957144194,0.69157009,138.25,138.21,7.23536647]
[1767957144391,3.5096877,138.24,138.21,7.23536647]
[1767957144591,3.5096877,138.24,138.21,25.32378264]
[1767957145311,3.5096877,138.24,138.22,13.2]
[1767957145692,3.5096877,138.24,138.22,12.475]
[1767957146503,4.20125779,138.25,138.22,12.475]
[1767957147110,0.69157009,138.24,138.22,12.475]
[1767957147311,4.92474209,138.26,138.22,12.475]
[1767957147615,4.92474209,138.26,138.22,19.70971433]
[1767957147815,1.41505439,138.26,138.22,19.70971433]
[1767957148214,0.7234843,138.26,138.23,0.72214399]
[1767957148509,67.73710506,138.27,138.23,4.23183169]
[1767957148724,67.73710506,138.27,138.23,0.72214399]
[1767957149017,71.24679276,138.27,138.23,4.23183169]
[1767957149594,71.24679276,138.27,138.24,7.23379629]
[1767957149801,67.73710506,138.27,138.24,7.23379629]
[1767957151818,3.5096877,138.29,138.25,17.43183169]
[1767957151995,5.20906523,138.3,138.25,17.43183169]
[1767957153998,4.92474209,138.3,138.26,11.44818513]
[1767957154316,1.41505439,138.3,138.26,11.44818513]
[1767957155316,1.41505439,138.3,138.26,29.53005985]
[1767957157128,4.92474209,138.3,138.26,29.53005985]
[1767957157312,4.92474209,138.3,138.26,26.02037215]
[1767957157626,4.2055497,138.27,138.26,13.2]
[1767957158524,0.695862,138.27,138.26,13.2]
[1767957158729,4.2055497,138.28,138.26,13.2]
[1767957158911,5.21335714,138.3,138.26,20.43263468]
[1767957159106,5.48497083,138.29,138.26,20.43263468]
[1767957159314,0.7234843,138.28,138.26,20.43263468]
[1767957160332,5.51259313,138.28,138.26,20.43263468]
[1767957161424,4.78910883,138.27,138.26,20.43263468]
[1767957161921,4.78910883,138.27,138.26,23.94232238]
[1767957162122,4.78910883,138.28,138.26,23.94232238]
[1767957162423,4.78910883,138.27,138.26,23.94232238]
[1767957162827,1.4193463,138.29,138.26,23.94232238]
[1767957164132,1.4193463,138.29,138.26,20.43263468]
[1767957164309,1.4193463,138.29,138.26,23.94232238]
[1767957164512,0.695862,138.29,138.26,23.94232238]
[1767957164925,1.4193463,138.3,138.26,24.64806992]
[1767957165216,1.4193463,138.3,138.27,3.5096877]
[1767957165917,1.4193463,138.3,138.26,21.13838222]
[1767957166229,1.4193463,138.3,138.27,10.74177885]
[1767957166730,0.695862,138.29,138.27,10.74177885]
[1767957166909,0.7234843,138.3,138.27,10.74177885]
[1767957168524,0.7234843,138.3,138.27,9.48328788]
[1767957168930,1.4022869,138.3,138.27,9.48328788]
[1767957169122,0.6788026,138.28,138.26,20.43268616]
[1767957169325,0.6788026,138.27,138.26,20.43268616]
[1767957169513,0.6788026,138.27,138.26,7.23268616]
[1767957170928,3.65348363,138.28,138.25,7.23327305]
[1767957172514,1.4022869,138.28,138.25,7.23327305]
[1767957181737,0.7234843,138.28,138.25,10.13774091]
[1767957182041,0.7234843,138.28,138.26,2.90446786]
[1767957182234,0.7234843,138.29,138.26,2.90446786]
[1767957183215,0.89423889,138.29,138.26,0.65327113]
[1767957183825,0.89423889,138.29,138.25,26.0081805]
[1767957184128,0.89423889,138.29,138.26,2.25119673]
[1767957185043,0.89423889,138.29,138.25,28.25937723]
[1767957187820,0.89423889,138.29,138.26,0.69172481]
[1767957188021,67.92901326,138.31,138.28,2.25119673]
[1767957189043,67.92901326,138.31,138.28,10.17424567]
[1767957190342,16.81733797,138.34,138.3,0.69172481]
[1767957190532,0.1919082,138.33,138.3,0.63205457]
[1767957190724,0.33406977,138.33,138.3,0.63205457]
[1767957190924,0.47623134,138.33,138.3,0.63205457]
[1767957191844,2.72742807,138.33,138.29,7.23104611]
[1767957192146,2.53551987,138.33,138.29,7.23104611]
[1767957192340,2.78650161,138.33,138.29,7.23104611]
[1767957192540,2.78650161,138.33,138.29,7.92277092]
[1767957192932,9.58874275,138.34,138.3,7.92232317]
[1767957193326,0.25098174,138.33,138.3,7.92232317]
[1767957194348,2.50217847,138.33,138.3,7.92232317]
[1767957194649,2.25119673,138.32,138.29,7.92264112]
[1767957194850,2.90456751,138.32,138.29,7.92264112]
[1767957195149,0.65337078,138.32,138.29,7.92264112]
[1767957197322,2.90456751,138.32,138.29,7.92264112]
[1767957198454,0.25500563,138.31,138.29,7.23091631]
[1767957199154,2.90863205,138.32,138.29,7.17091631]
[1767957200953,2.90863205,138.32,138.29,7.86264112]
[1767957201439,2.90863205,138.32,138.29,0.69172481]
[1767957203351,10.13832492,138.32,138.29,0.69172481]
[1767957203560,2.90863205,138.32,138.29,0.69172481]
[1767957204464,0.25098174,138.31,138.28,9.4826486]
[1767957204636,0.65743532,138.32,138.28,10.17437341]
[1767957205263,0.65743532,138.32,138.29,0.69172481]
[1767957206636,0.65743532,138.32,138.29,0.63172481]
[1767957209349,0.94175846,138.35,138.3,2.94292154]
[1767957209524,0.94175846,138.35,138.32,2.94292154]
[1767957209725,8.16990588,138.35,138.32,2.94292154]
[1767957209937,8.16990588,138.35,138.32,0.69172481]
[1767957210148,8.16990588,138.35,138.32,2.94292154]
[1767957212960,8.16990588,138.35,138.31,7.23012927]
[1767957213158,8.16990588,138.35,138.32,2.25119673]
[1767957213550,0.66484897,138.34,138.32,2.25119673]
[1767957215463,0.66484897,138.34,138.32,9.48075337]
[1767957215757,0.66484897,138.34,138.32,2.25119673]
[1767957219144,0.66484897,138.34,138.32,2.94244763]
[1767957219447,0.66484897,138.34,138.32,2.25119673]
[1767957219749,0.66484897,138.35,138.32,10.17193443]
[1767957222064,0.66484897,138.35,138.32,7.9207377]
[1767957225161,0.66484897,138.35,138.32,10.17193443]
[1767957228764,0.99792126,138.36,138.33,0.72241016]
[1767957229671,0.71359812,138.35,138.33,0.72241016]
[1767957230656,0.71359812,138.35,138.32,10.74439579]
[1767957231153,0.71359812,138.35,138.32,11.46680595]
[1767957231973,0.99792126,138.36,138.33,0.72241016]
[1767957232162,0.71359812,138.36,138.33,4.23731915]
[1767957232362,0.71359812,138.36,138.34,0.72241016]
[1767957232675,68.45070318,138.37,138.34,0.72241016]
[1767957233258,0.71359812,138.36,138.33,3.51490899]
[1767957233659,0.71359812,138.36,138.33,16.71490899]
[1767957235173,0.71359812,138.36,138.33,24.66627118]
[1767957235682,0.71359812,138.36,138.34,0.72241016]
[1767957235883,0.71359812,138.36,138.33,24.66627118]
[1767957236084,0.71359812,138.36,138.33,21.15136219]
[1767957240388,0.71359812,138.36,138.33,24.66627118]
[1767957242483,0.71359812,138.36,138.34,3.51490899]
[1767957242885,0.71359812,138.36,138.33,21.15136219]
[1767957243078,0.71359812,138.36,138.33,24.66627118]
[1767957244490,0.71359812,138.36,138.34,3.51490899]
[1767957245488,0.71359812,138.36,138.33,24.66627118]
[1767957245688,0.71359812,138.36,138.34,3.51490899]
[1767957246286,1.00226265,138.37,138.34,4.21716007]
[1767957246989,0.71793951,138.36,138.34,4.21716007]
[1767957247393,0.71793951,138.37,138.34,11.44569361]
[1767957252594,0.71793951,138.37,138.34,10.74344253]
[1767957253993,0.71793951,138.37,138.34,11.44569361]
[1767957254190,0.71793951,138.37,138.35,3.51490899]
[1767957254797,0.71793951,138.37,138.35,4.21716007]
[1767957255898,0.71793951,138.38,138.35,11.4451329]
[1767957256592,0.71793951,138.38,138.35,10.74288182]
[1767957257381,0.71793951,138.38,138.36,3.51490899]
[1767957257583,0.71793951,138.4,138.37,4.21716007]
[1767957257895,0.2,138.41,138.39,10.74072901]
[1767957258086,0.2,138.41,138.39,11.44298009]
[1767957258287,0.2,138.41,138.39,24.64298009]
[1767957259289,0.2,138.41,138.39,17.41716007]
[1767957260699,0.2,138.41,138.4,3.51490899]
[1767957262697,0.91793951,138.42,138.4,11.44248775]
[1767957262698,0.2,138.42,138.4,11.44248775]
[1767957263710,0.2,138.42,138.4,4.21716007]
[1767957264184,0.2,138.42,138.4,0.70225108]
[1767957264377,0.2,138.42,138.4,4.21716007]
[1767957267283,0.2,138.42,138.41,3.51490899]
[1767957269587,0.71793951,138.43,138.41,3.51490899]
[1767957269793,68.45504457,138.44,138.42,3.51490899]
[1767957270011,0.71793951,138.44,138.42,3.51490899]
[1767957271104,0.34216157,138.45,138.43,4.21716007]
[1767957271602,0.2,138.45,138.43,4.21716007]
[1767957272406,0.2,138.45,138.43,11.44091754]
[1767957273906,0.2,138.45,138.44,3.51490899]
[1767957274118,0.2,138.45,138.44,4.17354408]
[1767957274498,68.58962301,138.47,138.44,4.17354408]
[1767957274702,68.58962301,138.47,138.45,3.51490899]
[1767957275016,0.2,138.47,138.45,4.17354408]
[1767957275513,0.2,138.48,138.46,4.17354408]
[1767957276110,0.2,138.48,138.47,3.51490899]
[1767957277619,0.84947974,138.48,138.46,3.51490899]
[1767957277822,0.2,138.48,138.46,10.73702756]
[1767957278018,0.14216157,138.47,138.43,0.65863509]
[1767957278216,0.28432314,138.47,138.43,17.35354408]
[1767957279520,0.28432314,138.47,138.43,24.57735702]
[1767957279703,7.42154608,138.48,138.44,0.65863509]
[1767957280306,7.42154608,138.48,138.44,4.17354408]
[1767957282028,7.42154608,138.48,138.44,11.39680689]
[1767957282522,0.48432314,138.48,138.44,11.39680689]
[1767957283025,0.2,138.48,138.45,4.17354408]
[1767957283427,78.67147193,138.52,138.47,4.17354408]
[1767957283605,75.15656294,138.52,138.47,4.17354408]
[1767957283805,78.67147193,138.52,138.47,4.17354408]
[1767957284121,78.67147193,138.52,138.47,0.65863509]
[1767957284122,0.28432314,138.51,138.47,0.65863509]
[1767957285212,7.50437934,138.51,138.47,0.65863509]
[1767957290529,7.50437934,138.51,138.47,2.9036806]
[1767957296939,0.28432314,138.51,138.48,0.67056364]
[1767957297934,9.74910082,138.51,138.46,21.07266466]
[1767957298114,9.74910082,138.51,138.46,23.31771017]
[1767957298837,9.74910082,138.51,138.46,13.85056364]
[1767957299030,9.74910082,138.51,138.46,16.09560915]
[1767957299440,27.79833914,138.51,138.46,16.09560915]
[1767957299837,25.55329363,138.51,138.46,2.91560915]
[1767957300039,27.79833914,138.51,138.46,2.91560915]
[1767957301248,27.79833914,138.51,138.47,0.67056364]
[1767957302147,27.79833914,138.51,138.46,0.67056364]
[1767957302342,0.28432314,138.47,138.44,0.67056364]
[1767957303127,0.28432314,138.47,138.44,2.91560915]
[1767957307468,7.50529234,138.49,138.45,2.93647694]
[1767957307759,0.28432314,138.49,138.47,2.93647694]
[1767957307929,0.28432314,138.49,138.48,0.69143143]
[1767957308131,67.73710506,138.5,138.48,0.69143143]
[1767957310333,67.73710506,138.5,138.48,2.93647694]
[1767957310656,67.73710506,138.5,138.49,0.69143143]
[1767957311573,67.73710506,138.5,138.48,2.93647694]
[1767957311863,67.73710506,138.5,138.49,2.24504551]
[1767957312171,67.73710506,138.5,138.49,2.93647694]
[1767957314961,0.2,138.52,138.5,0.69143143]
[1767957315140,0.31788522,138.54,138.51,2.93647694]
[1767957315633,0.60220836,138.54,138.51,2.93647694]
[1767957316034,0.60220836,138.54,138.5,2.93647694]
[1767957316035,7.53602296,138.54,138.5,2.93647694]
[1767957316235,7.53602296,138.54,138.49,7.22073795]
[1767957316236,0.2,138.54,138.52,2.93647694]
[1767957316434,0.31788522,138.54,138.51,0.69143143]
[1767957316659,0.31788522,138.54,138.51,2.24504551]
[1767957316958,0.2,138.54,138.51,2.93647694]
[1767957318355,0.11788522,138.53,138.5,0.69143143]
[1767957318556,0.11788522,138.53,138.49,2.93647694]
[1767957318761,0.11788522,138.53,138.5,0.69143143]
[1767957318952,7.33662444,138.53,138.5,0.69143143]
[1767957319855,7.33662444,138.53,138.5,2.93647694]
[1767957320544,0.11788522,138.53,138.5,2.93647694]
[1767957320855,0.70004363,138.52,138.49,0.69143143]
[1767957321038,0.70004363,138.52,138.49,2.93647694]
[1767957321353,8.0669018,138.53,138.49,2.93647694]
[1767957321552,0.11788522,138.52,138.49,2.93647694]
[1767957323061,8.0669018,138.53,138.49,2.93647694]
[1767957323840,0.11788522,138.52,138.49,2.93647694]
[1767957324039,7.36097778,138.53,138.5,0.69143143]
[1767957324372,0.2,138.54,138.53,0.69143143]
[1767957324665,0.2,138.54,138.52,2.93647694]
[1767957324870,0.2,138.54,138.52,0.69143143]
[1767957326246,0.48432314,138.54,138.52,0.69143143]
[1767957327464,0.2,138.54,138.52,0.69143143]
[1767957327634,0.2,138.54,138.52,2.93647694]
[1767957334968,0.2,138.54,138.52,0.69143143]
[1767957336471,0.2,138.54,138.52,2.93647694]
[1767957338375,0.2,138.54,138.52,0.69143143]
[1767957338575,0.2,138.54,138.52,2.93647694]
[1767957339276,0.2,138.54,138.52,0.69143143]
[1767957339490,0.2,138.54,138.52,2.93647694]
[1767957340578,0.2,138.54,138.53,0.71066278]
[1767957340954,0.2,138.54,138.52,0.71066278]
[1767957344279,8.07196995,138.54,138.51,13.89066278]
[1767957345969,8.07196995,138.54,138.51,16.13570829]
[1767957347879,8.07196995,138.54,138.51,13.89066278]
[1767957348294,0.64894723,138.52,138.49,0.68080618]
[1767957348785,0.64894723,138.52,138.49,2.92585169]
[1767957350270,7.86819045,138.52,138.49,2.92585169]
[1767957350458,0.64420068,138.5,138.48,13.18]
[1767957350664,0.64420068,138.5,138.47,0.68080618]
[1767957351375,4.46762232,138.51,138.47,0.68080618]
[1767957354662,8.17970398,138.51,138.48,0.67793208]
[1767957356388,0.14795263,138.5,138.47,0.67793208]
[1767957356571,0.14795263,138.5,138.47,4.18567837]
[1767957356772,3.50774629,138.52,138.48,0.67793208]
[1767957356991,0.28432314,138.52,138.49,0.67793208]
[1767957357378,0.38603687,138.52,138.49,0.67793208]
[1767957357690,3.89378316,138.52,138.49,0.67793208]
[1767957357866,11.11309421,138.52,138.49,0.67793208]
[1767957358072,0.7160534,138.51,138.48,0.67793208]
[1767957359286,0.39218027,138.5,138.47,0.67793208]
[1767957360386,7.61259554,138.5,138.47,0.67793208]
[1767957361588,7.50473841,138.5,138.47,0.67793208]
[1767957364176,11.11419843,138.5,138.47,0.67793208]
[1767957364471,7.60645214,138.5,138.47,0.67793208]
[1767957365891,11.11419843,138.5,138.47,0.67793208]
[1767957368593,11.11419843,138.5,138.46,13.18]
[1767957368594,0.71370781,138.53,138.5,0.72084717]
[1767957368894,0.71370781,138.53,138.5,13.18]
[1767957369270,0.71370781,138.52,138.48,3.50774629]
[1767957369596,0.71370781,138.52,138.49,13.18]
[1767957370473,7.93305288,138.52,138.49,13.18]
[1767957371982,7.93303584,138.52,138.49,13.18]
[1767957375692,0.71370781,138.51,138.49,13.18]
[1767957376707,0.71370781,138.5,138.47,13.18]
[1767957378186,7.9335509,138.51,138.47,13.18]
[1767957379175,11.44129719,138.51,138.47,13.18]
[1767957383503,7.9335509,138.51,138.47,13.18]
[1767957383977,11.44129719,138.51,138.47,13.18]
[1767957385710,0.71370781,138.5,138.47,13.18]
[1767957386387,4.2214541,138.5,138.47,13.18]
[1767957386600,0.71370781,138.49,138.47,13.18]
[1767957387105,0.71370781,138.5,138.47,13.18]
[1767957391406,4.2214541,138.5,138.47,13.18]
[1767957391705,11.44129719,138.51,138.47,13.18]
[1767957391901,11.44129719,138.51,138.47,20.40175509]
[1767957392099,7.9335509,138.51,138.47,23.90950138]
[1767957393499,0.68426026,138.5,138.47,23.90950138]
[1767957393699,10.72675267,138.53,138.48,3.50774629]
[1767957393896,11.41101293,138.53,138.48,3.50774629]
[1767957394205,7.21900638,138.53,138.48,3.50774629]
[1767957394714,10.72675267,138.53,138.48,3.50774629]
[1767957395100,10.72675267,138.53,138.48,10.72852587]
[1767957395407,11.41101293,138.53,138.48,10.72852587]
[1767957399714,0.68426026,138.52,138.48,10.72852587]
[1767957407915,10.72675267,138.53,138.48,10.72852587]
[1767957408117,11.41957538,138.53,138.48,10.72852587]
[1767957410221,11.41957538,138.53,138.48,7.22077958]
[1767957410406,3.50774629,138.52,138.48,10.72852587]
[1767957412526,2.24440529,138.52,138.48,9.46518487]
[1767957412702,2.937228,138.52,138.48,9.46518487]
[1767957412904,2.937228,138.52,138.48,7.22077958]
[1767957418130,2.937228,138.52,138.48,9.46518487]
[1767957418931,2.937228,138.52,138.48,7.22077958]
[1767957419528,2.937228,138.52,138.47,33.47885751]
[1767957419529,2.24440529,138.49,138.47,13.18]
[1767957420425,2.937228,138.5,138.47,13.18]
[1767957421440,10.15763174,138.5,138.47,13.18]
[1767957423238,0.70257189,138.49,138.47,13.18]
[1767957423414,2.94697718,138.49,138.47,13.18]
[1767957424215,2.24440529,138.48,138.47,13.18]
[1767957424520,0.70257189,138.49,138.47,13.18]
[1767957424726,10.1674479,138.5,138.47,13.18]
[1767957425335,0.70257189,138.5,138.47,13.18]
[1767957425637,0.70257189,138.5,138.47,22.64608193]
[1767957425842,0.70257189,138.5,138.47,20.40167664]
[1767957426340,0.70257189,138.5,138.47,13.18]
[1767957429543,18.18950191,138.53,138.49,2.24440529]
[1767957429544,7.92136528,138.53,138.49,2.24440529]
[1767957429747,7.92136528,138.53,138.5,13.18]
[1767957434934,0.70257189,138.53,138.5,20.39998558]
[1767957439728,2.94697718,138.53,138.5,20.39998558]
[1767957440356,2.94697718,138.53,138.5,13.18]
[1767957444651,0.70257189,138.53,138.5,13.18]
[1767957445243,9.66258639,138.54,138.5,13.18]
[1767957445439,0.70257189,138.53,138.5,13.18]
[1767957446931,2.94697718,138.53,138.5,13.18]
[1767957449246,0.70257189,138.53,138.5,13.18]
[1767957449436,0.70257189,138.53,138.5,13.12]
[1767957450450,0.70257189,138.52,138.5,13.12]
[1767957450751,0.70257189,138.51,138.5,13.12]
[1767957452050,0.70257189,138.52,138.5,13.12]